bitfinex/quotes_BTCUSD_20251114
["timestamp","ask_amount","ask_price","bid_price","bid_amount"]
[1763152001228,0.55230989,95143.0,95120.0,0.09926803]
[1763152001608,0.55230989,95143.0,95142.0,1e-08]
[1763152002014,0.55230989,95143.0,95142.0,0.00100001]
[1763152002652,0.55230989,95143.0,95142.0,1e-08]
[1763152002886,0.55330989,95143.0,95142.0,1e-08]
[1763152003346,0.84376289,95143.0,95142.0,1e-08]
[1763152003573,0.84376289,95143.0,95100.0,0.0004]
[1763152003574,0.21030273,95101.0,95100.0,0.0004]
[1763152004789,0.21030273,95101.0,95100.0,0.0014]
[1763152005461,0.21030273,95101.0,95100.0,0.0004]
[1763152007862,0.21030273,95101.0,95100.0,0.01223]
[1763152008319,0.21030273,95101.0,95100.0,0.0004]
[1763152009415,0.21030273,95101.0,95100.0,0.00155695]
[1763152010549,0.21030054,95102.0,95100.0,0.01338695]
[1763152010769,0.21030273,95101.0,95100.0,0.01223]
[1763152011532,0.01051193,95130.0,95100.0,0.0004]
[1763152011742,0.21026735,95117.0,95113.0,0.09926803]
[1763152011977,0.38719646,95130.0,95114.0,0.02102739]
[1763152012210,0.01051193,95130.0,95129.0,0.11109803]
[1763152012422,0.01051193,95130.0,95129.0,0.09926803]
[1763152012423,0.22075276,95130.0,95129.0,0.09926803]
[1763152013068,0.22075276,95130.0,95113.0,0.09926803]
[1763152013069,0.21027398,95114.0,95113.0,0.12132803]
[1763152013285,0.21027398,95114.0,95113.0,0.10026803]
[1763152014841,0.21027398,95114.0,95113.0,0.09926803]
[1763152015050,0.21027398,95114.0,95113.0,0.10126803]
[1763152015555,0.21027398,95114.0,95113.0,0.10026803]
[1763152015710,0.21027398,95114.0,95113.0,0.10126803]
[1763152016171,0.21027398,95114.0,95113.0,0.10026803]
[1763152016322,0.21027398,95114.0,95113.0,0.10126803]
[1763152017848,0.22474398,95114.0,95113.0,0.002]
[1763152018258,0.21027398,95114.0,95113.0,0.002]
[1763152018859,0.21027398,95114.0,95113.0,0.001]
[1763152019073,0.21029609,95104.0,95103.0,0.09926803]
[1763152020150,0.21030273,95101.0,95100.0,0.0004]
[1763152020584,0.21034696,95081.0,95080.0,0.0004]
[1763152021929,0.21034696,95081.0,95080.0,0.0014]
[1763152022339,0.21034696,95081.0,95080.0,0.00310823]
[1763152023088,0.21034696,95081.0,95080.0,0.00410823]
[1763152023508,0.21034696,95081.0,95080.0,0.00310823]
[1763152023707,0.21034696,95081.0,95080.0,0.01210823]
[1763152023912,0.21034696,95081.0,95080.0,0.00210823]
[1763152025535,0.21034696,95081.0,95080.0,0.00310823]
[1763152026053,0.21034696,95081.0,95080.0,0.00210823]
[1763152026626,0.22934696,95081.0,95080.0,0.00210823]
[1763152027494,0.55234696,95081.0,95080.0,0.00210823]
[1763152027668,0.55234696,95081.0,95080.0,1e-08]
[1763152029592,0.21034696,95081.0,95080.0,1e-08]
[1763152031486,0.21034696,95081.0,95080.0,0.00100001]
[1763152031688,0.21034696,95081.0,95080.0,0.00200001]
[1763152032130,0.21034696,95081.0,95080.0,0.00100001]
[1763152032339,0.21032705,95090.0,95089.0,0.02118]
[1763152032553,0.21032705,95090.0,95089.0,0.12044803]
[1763152032668,0.21032705,95090.0,95089.0,0.10926803]
[1763152033902,0.21032705,95090.0,95074.0,0.21036165]
[1763152033903,0.21032705,95090.0,95041.0,0.09926803]
[1763152033904,0.02941635,95090.0,95041.0,0.09926803]
[1763152034256,0.21039564,95059.0,95043.0,0.01118]
[1763152035285,0.21039564,95059.0,95058.0,0.00993]
[1763152035798,0.21039564,95059.0,95058.0,0.00893]
[1763152036278,0.21039564,95059.0,95058.0,0.01093]
[1763152036540,0.21039564,95059.0,95058.0,0.001]
[1763152036743,0.21039564,95059.0,95058.0,0.002]
[1763152037529,0.21039564,95059.0,95047.0,0.01118]
[1763152038460,0.21039564,95059.0,95041.0,0.09926803]
[1763152038461,0.0189,95058.0,95035.0,0.01118]
[1763152040036,0.10494752,95058.0,95031.0,0.00142721]
[1763152040219,0.0189,95058.0,95031.0,0.00142721]
[1763152041533,0.0199,95058.0,95031.0,0.00142721]
[1763152042386,0.0199,95058.0,95031.0,0.02247297]
[1763152042813,0.0209,95058.0,95031.0,0.02247297]
[1763152043250,0.002,95058.0,95045.0,0.01118]
[1763152043474,0.002,95058.0,95057.0,0.00072407]
[1763152043911,0.001,95058.0,95057.0,0.00072407]
[1763152044125,0.21039564,95059.0,95057.0,0.00072407]
[1763152044345,0.21039564,95059.0,95058.0,0.09926803]
[1763152045458,0.21039564,95059.0,95057.0,9e-05]
[1763152045666,0.21039564,95059.0,95058.0,0.09926803]
[1763152049731,0.21039564,95059.0,95058.0,0.09987453]
[1763152053297,0.21039564,95059.0,95058.0,0.10087453]
[1763152054729,0.21039564,95059.0,95058.0,0.11087453]
[1763152055141,0.19328013,95059.0,95058.0,0.12152453]
[1763152055340,0.19328013,95059.0,95058.0,0.11087453]
[1763152056180,0.19328013,95059.0,95058.0,0.10987453]
[1763152056350,0.19328013,95059.0,95058.0,0.11087453]
[1763152056555,0.19328013,95059.0,95058.0,0.11187453]
[1763152056753,0.19328013,95059.0,95058.0,0.10087453]
[1763152057127,0.19328013,95059.0,95058.0,0.0026065]
[1763152057683,0.21244013,95059.0,95058.0,0.0026065]
[1763152058020,0.19328013,95059.0,95058.0,0.0016065]
[1763152058195,0.19328013,95059.0,95058.0,0.0026065]
[1763152060307,0.21244013,95059.0,95058.0,0.0006065]
[1763152061584,0.19328013,95059.0,95058.0,0.0006065]
[1763152063714,0.21244013,95059.0,95058.0,0.0006065]
[1763152064577,0.21039786,95058.0,95057.0,9e-05]
[1763152064794,0.22955786,95058.0,95057.0,9e-05]
[1763152068264,0.41318758,95058.0,95057.0,9e-05]
[1763152068463,0.41318758,95058.0,95031.0,0.00142721]
[1763152068464,0.21045542,95032.0,95031.0,0.00142721]
[1763152068673,0.24376542,95032.0,95031.0,0.00142721]
[1763152070565,0.22460542,95032.0,95031.0,0.00142721]
[1763152070970,0.22460542,95032.0,95031.0,0.00217183]
[1763152072244,0.24376542,95032.0,95031.0,0.00217183]
[1763152073907,0.22460542,95032.0,95031.0,0.00217183]
[1763152075332,0.21045542,95032.0,95031.0,0.00217183]
[1763152077022,0.22961542,95032.0,95031.0,0.00217183]
[1763152077770,0.21049529,95014.0,95013.0,0.09926803]
[1763152077974,0.19337161,95014.0,95013.0,0.09926803]
[1763152078779,0.19337161,95014.0,95013.0,0.10026803]
[1763152080010,0.19337161,95014.0,95013.0,0.09926803]
[1763152080211,0.19337161,95014.0,95013.0,0.10126803]
[1763152080484,0.19337161,95014.0,95013.0,0.10026803]
[1763152080853,0.19337161,95014.0,95013.0,0.10126803]
[1763152081301,0.21087161,95014.0,95013.0,0.002]
[1763152081507,0.19337161,95014.0,95013.0,0.002]
[1763152082027,0.19337161,95014.0,95013.0,0.001]
[1763152082876,0.21034686,95003.0,95002.0,0.04773218]
[1763152083086,0.01052299,95030.0,95013.0,0.001]
[1763152083235,0.21048643,95018.0,95017.0,0.09926803]
[1763152083455,0.21046649,95027.0,95026.0,0.00834]
[1763152083654,0.21048421,95019.0,95018.0,0.01]
[1763152084022,0.21048421,95019.0,95017.0,0.09926803]
[1763152084023,0.21048643,95018.0,95017.0,0.09926803]
[1763152085005,0.21048643,95018.0,95017.0,0.10926803]
[1763152085411,0.21048643,95018.0,95017.0,0.09926803]
[1763152085594,0.21048643,95018.0,95017.0,0.10926803]
[1763152086380,0.21048643,95018.0,95017.0,0.09926803]
[1763152086678,0.21048643,95018.0,95017.0,0.10026803]
[1763152086853,0.21048643,95018.0,95017.0,0.09926803]
[1763152087209,0.21048643,95018.0,95017.0,0.10026803]
[1763152087411,0.21048643,95018.0,95017.0,0.10126803]
[1763152088054,0.19336461,95018.0,95017.0,0.10960803]
[1763152089960,0.19336461,95018.0,95017.0,0.11126803]
[1763152090326,0.19336461,95018.0,95017.0,0.11165422]
[1763152090665,0.19336461,95018.0,95017.0,0.10165422]
[1763152090873,0.19336461,95018.0,95017.0,0.11165422]
[1763152091416,0.21046649,95027.0,95026.0,0.00772]
[1763152091986,0.21046871,95026.0,95025.0,0.01]
[1763152092438,0.21046871,95026.0,95017.0,0.09926803]
[1763152092439,0.21048643,95018.0,95017.0,0.09926803]
[1763152092615,0.21048643,95018.0,95017.0,0.10926803]
[1763152092809,0.21048643,95018.0,95017.0,0.09926803]
[1763152094203,0.21048643,95018.0,95017.0,0.10126803]
[1763152095030,0.21048462,95019.0,95017.0,0.10126803]
[1763152095257,0.21048643,95018.0,95017.0,0.10126803]
[1763152095911,0.21048643,95018.0,95017.0,0.09926803]
[1763152096318,0.21048643,95018.0,95017.0,0.25006803]
[1763152096525,0.21048643,95018.0,95017.0,0.10026803]
[1763152096895,0.21048643,95018.0,95017.0,0.09926803]
[1763152097078,0.21048643,95018.0,95017.0,0.10126803]
[1763152097282,0.21048643,95018.0,95017.0,0.10165422]
[1763152097484,0.21048643,95018.0,95017.0,0.10065422]
[1763152098299,0.21048643,95018.0,95017.0,0.09965422]
[1763152098714,0.21048643,95018.0,95017.0,0.10165422]
[1763152099217,0.21048643,95018.0,95017.0,0.00238619]
[1763152099422,0.21048462,95019.0,95017.0,0.00238619]
[1763152099624,0.21048643,95018.0,95017.0,0.002]
[1763152100106,0.22909643,95018.0,95017.0,0.002]
[1763152100412,0.21051966,95003.0,95002.0,0.00834]
[1763152100787,0.22451966,95003.0,95002.0,0.00834]
[1763152101357,0.22451966,95003.0,95000.0,24.44027939]
[1763152101358,0.21052409,95001.0,95000.0,24.44027939]
[1763152102395,0.22913409,95001.0,95000.0,24.44027939]
[1763152102999,0.22913409,95001.0,95000.0,24.44227939]
[1763152103422,0.21052409,95001.0,95000.0,24.44227939]
[1763152104211,0.22913409,95001.0,95000.0,24.44227939]
[1763152106480,0.21052409,95001.0,95000.0,24.44227939]
[1763152106850,0.21052409,95001.0,95000.0,24.4431347]
[1763152107067,0.22913409,95001.0,95000.0,24.4431347]
[1763152108006,0.21052409,95001.0,95000.0,24.4431347]
[1763152108216,0.21051488,95006.0,95000.0,24.4431347]
[1763152108217,0.37875232,95010.0,95009.0,0.0104]
[1763152108411,0.21050637,95010.0,95009.0,0.0104]
[1763152109255,0.21050637,95010.0,95009.0,0.0114]
[1763152109667,0.21050637,95010.0,95009.0,0.002]
[1763152110262,0.19338202,95010.0,95009.0,0.002]
[1763152112121,0.19338202,95010.0,95009.0,0.0124]
[1763152113523,0.19338202,95010.0,95009.0,0.0224]
[1763152113680,0.19338202,95010.0,95009.0,0.02300693]
[1763152113885,0.19338202,95010.0,95009.0,0.00260693]
[1763152115715,0.19338202,95010.0,95009.0,0.01260693]
[1763152116405,0.19338202,95010.0,95009.0,0.00260693]
[1763152117227,0.21048421,95019.0,95018.0,0.0104]
[1763152117694,0.21050415,95010.0,95009.0,0.012]
[1763152118381,0.21050415,95010.0,95009.0,0.01]
[1763152118587,0.21050236,95011.0,95009.0,0.01]
[1763152118795,0.21050236,95011.0,95010.0,0.0204]
[1763152119219,0.4208956,95036.0,95011.0,0.0104]
[1763152119440,0.22098505,95030.0,95029.0,0.09926803]
[1763152119649,0.22098505,95030.0,95029.0,0.11966803]
[1763152119855,0.22098505,95030.0,95029.0,0.10926803]
[1763152120273,0.20386467,95030.0,95029.0,0.11966803]
[1763152120420,0.20386467,95030.0,95029.0,0.10926803]
[1763152120643,0.3892742,95040.0,95039.0,0.01]
[1763152120644,0.22095959,95040.0,95039.0,0.01]
[1763152120845,0.22095959,95040.0,95039.0,0.1702]
[1763152121044,0.22095959,95040.0,95039.0,0.1602]
[1763152121811,0.22095959,95040.0,95039.0,0.1612]
[1763152122695,0.22095959,95040.0,95039.0,0.1622]
[1763152122904,0.22095959,95040.0,95039.0,0.1518]
[1763152123107,0.22095959,95040.0,95039.0,0.1508]
[1763152123516,0.22095959,95040.0,95039.0,0.1498]
[1763152124075,0.21045985,95030.0,95029.0,0.09926803]
[1763152124846,0.21045985,95030.0,95000.0,24.44027939]
[1763152124847,0.21050194,95011.0,95010.0,0.0104]
[1763152128295,0.21050194,95011.0,95010.0,0.0308]
[1763152128501,0.21050194,95011.0,95010.0,0.0204]
[1763152128697,0.21050194,95011.0,95010.0,0.01097933]
[1763152130352,0.19337875,95011.0,95010.0,0.02137933]
[1763152130559,0.21050157,95012.0,95010.0,0.02137933]
[1763152130802,0.21050157,95012.0,95011.0,0.0104]
[1763152132844,0.21050157,95012.0,95000.0,24.44027939]
[1763152132845,0.21052188,95002.0,95000.0,24.44027939]
[1763152133440,0.03371,95001.0,95000.0,24.44027939]
[1763152134487,0.04448078,95001.0,95000.0,24.44027939]
[1763152134681,0.03371,95001.0,95000.0,24.44027939]
[1763152135879,0.01412,95001.0,95000.0,24.44027939]
[1763152136104,0.21052188,95002.0,95000.0,24.44027939]
[1763152136346,0.01959,95001.0,95000.0,24.4411347]
[1763152136540,0.21052188,95002.0,95000.0,24.4411347]
[1763152136744,0.21052188,95002.0,95000.0,24.44027939]
[1763152136970,0.21052188,95002.0,95001.0,0.00082771]
[1763152137837,0.23011188,95002.0,95001.0,0.00082771]
[1763152140877,0.21052188,95002.0,95001.0,0.00082771]
[1763152141104,0.22895188,95002.0,95001.0,0.00082771]
[1763152142945,0.24272188,95002.0,95001.0,0.00082771]
[1763152148453,0.22895409,95001.0,95000.0,23.96062513]
[1763152148701,0.55195409,95001.0,95000.0,23.41392165]
[1763152148914,0.94914709,95001.0,95000.0,23.41392165]
[1763152149336,0.84791909,95001.0,95000.0,23.41392165]
[1763152149552,0.77649609,95001.0,95000.0,23.41392165]
[1763152149970,0.77749609,95001.0,95000.0,23.40392165]
[1763152150398,0.73608609,95001.0,95000.0,23.40392165]
[1763152150852,0.71829409,95001.0,95000.0,23.40392165]
[1763152151055,0.71929409,95001.0,95000.0,23.40392165]
[1763152151230,0.66403309,95001.0,95000.0,23.40392165]
[1763152152041,0.55395409,95001.0,95000.0,23.40392165]
[1763152152462,0.68701109,95001.0,95000.0,23.40392165]
[1763152152645,0.55395409,95001.0,95000.0,23.40392165]
[1763152152852,0.66802409,95001.0,95000.0,23.40392165]
[1763152153079,0.55395409,95001.0,95000.0,23.40392165]
[1763152153694,0.58556826,95001.0,95000.0,23.40392165]
[1763152154931,0.26256826,95001.0,95000.0,23.40392165]
[1763152155130,0.23095409,95001.0,95000.0,23.40392165]
[1763152155515,0.21252409,95001.0,95000.0,23.40392165]
[1763152156217,0.24998409,95001.0,95000.0,23.40392165]
[1763152156417,0.21052409,95001.0,95000.0,23.40392165]
[1763152157585,0.23250409,95001.0,95000.0,23.40392165]
[1763152161087,0.23350409,95001.0,95000.0,23.40392165]
[1763152162527,0.23350409,95001.0,95000.0,22.92646644]
[1763152167571,0.26511822,95001.0,95000.0,22.92646644]
[1763152169759,0.23350409,95001.0,95000.0,22.92646644]
[1763152171944,0.21152409,95001.0,95000.0,22.92646644]
[1763152172358,0.23476409,95001.0,95000.0,22.92646644]
[1763152174330,0.23376409,95001.0,95000.0,22.92646644]
[1763152176919,0.21052409,95001.0,95000.0,22.92646644]
[1763152177351,0.23376409,95001.0,95000.0,22.92646644]
[1763152178886,0.01412,95016.0,95009.0,0.01022]
[1763152179078,0.21049086,95016.0,95015.0,0.10948803]
[1763152179281,0.23373086,95016.0,95015.0,0.09926803]
[1763152179485,0.23373086,95016.0,95000.0,22.92646644]
[1763152179486,0.21052409,95001.0,95000.0,22.92646644]
[1763152179688,0.21052409,95001.0,95000.0,22.94668644]
[1763152179917,0.21052409,95001.0,95000.0,22.92646644]
[1763152181265,0.21052409,95001.0,95000.0,22.92746644]
[1763152181474,0.21052409,95001.0,95000.0,22.92646644]
[1763152181687,0.21052409,95001.0,95000.0,22.92746644]
[1763152182112,0.21052409,95001.0,95000.0,22.92646644]
[1763152183369,0.23376409,95001.0,95000.0,22.92646644]
[1763152185243,0.23476409,95001.0,95000.0,22.92646644]
[1763152185597,0.001,95001.0,95000.0,22.92646644]
[1763152185765,0.23476409,95001.0,95000.0,22.92646644]
[1763152188610,0.23476409,95001.0,95000.0,19.91117294]
[1763152188611,1.40306712,95001.0,95000.0,19.91117294]
[1763152188820,1.40306712,95001.0,95000.0,19.48863057]
[1763152188821,1.84487557,95001.0,95000.0,19.48863057]
[1763152188953,1.83414222,95001.0,95000.0,19.48863057]
[1763152189159,1.4162072,95001.0,95000.0,19.28449672]
[1763152189364,1.53707852,95001.0,95000.0,19.0773082]
[1763152189587,1.45996954,95001.0,95000.0,18.7540696]
[1763152189933,1.56263892,95001.0,95000.0,18.53645168]
[1763152190076,1.56463892,95001.0,95000.0,18.33770965]
[1763152190278,1.56263892,95001.0,95000.0,18.09511633]
[1763152190481,1.56263892,95001.0,95000.0,17.89332295]
[1763152190683,1.56263892,95001.0,95000.0,16.68654908]
[1763152190684,1.64476067,95001.0,95000.0,16.68654908]
[1763152190883,1.55748067,95001.0,95000.0,16.68654908]
[1763152191112,0.85152409,95001.0,95000.0,16.68654908]
[1763152191324,0.69628409,95001.0,95000.0,16.68654908]
[1763152191667,0.68474909,95001.0,95000.0,16.68654908]
[1763152191847,0.55676409,95001.0,95000.0,16.68654908]
[1763152192220,0.55876409,95001.0,95000.0,16.68654908]
[1763152192802,0.56176409,95001.0,95000.0,16.68654908]
[1763152193208,0.55876409,95001.0,95000.0,16.68654908]
[1763152193408,0.55776409,95001.0,95000.0,16.68654908]
[1763152193898,0.55876409,95001.0,95000.0,16.68654908]
[1763152194460,0.79644409,95001.0,95000.0,16.68654908]
[1763152194887,0.53552409,95001.0,95000.0,16.68654908]
[1763152197663,0.53580409,95001.0,95000.0,16.68654908]
[1763152197863,0.53480409,95001.0,95000.0,16.68654908]
[1763152198081,0.53580409,95001.0,95000.0,16.68654908]
[1763152198922,0.53480409,95001.0,95000.0,16.68654908]
[1763152199308,0.53580409,95001.0,95000.0,16.68654908]
[1763152200493,1.31059647,95001.0,95000.0,16.16735356]
[1763152200693,1.31059647,95001.0,95000.0,15.87198269]
[1763152200916,1.31059647,95001.0,95000.0,15.7055729]
[1763152201116,1.20692709,95001.0,95000.0,15.7055729]
[1763152201352,1.20592709,95001.0,95000.0,15.28041948]
[1763152201770,1.20692709,95001.0,95000.0,14.82943636]
[1763152202175,1.20592709,95001.0,95000.0,14.44068907]
[1763152202371,1.20692709,95001.0,95000.0,14.44068907]
[1763152202579,1.31059647,95001.0,95000.0,13.96079382]
[1763152202831,1.24934583,95001.0,95000.0,13.54135178]
[1763152203217,1.25034583,95001.0,95000.0,13.54135178]
[1763152203450,0.53580409,95001.0,95000.0,13.54135178]
[1763152203890,0.53380409,95001.0,95000.0,13.54135178]
[1763152204095,2.53380409,95001.0,95000.0,13.54135178]
[1763152204517,2.53780409,95001.0,95000.0,13.54135178]
[1763152205361,2.53580409,95001.0,95000.0,13.54135178]
[1763152205591,2.53780409,95001.0,95000.0,13.54135178]
[1763152206026,2.53580409,95001.0,95000.0,13.54135178]
[1763152206231,2.53780409,95001.0,95000.0,13.54135178]
[1763152207915,2.61296198,95001.0,95000.0,13.54135178]
[1763152208762,2.53780409,95001.0,95000.0,13.54135178]
[1763152208976,2.53780409,95001.0,95000.0,13.02572822]
[1763152209182,2.53780409,95001.0,95000.0,12.76151444]
[1763152209395,2.53780409,95001.0,95000.0,12.58370285]
[1763152209637,2.53780409,95001.0,95000.0,12.2191406]
[1763152209785,2.53780409,95001.0,95000.0,12.04000025]
[1763152209995,2.53780409,95001.0,95000.0,11.90410094]
[1763152210229,2.64147347,95001.0,95000.0,11.57424812]
[1763152211178,2.53780409,95001.0,95000.0,11.57424812]
[1763152214502,2.56942222,95001.0,95000.0,11.57424812]
[1763152214709,2.61284096,95001.0,95000.0,10.88762112]
[1763152214920,2.62284096,95001.0,95000.0,10.30444959]
[1763152215172,2.62284096,95001.0,95000.0,10.27282443]
[1763152215366,2.72651034,95001.0,95000.0,110.12735499]
[1763152215551,2.71651034,95001.0,95000.0,110.12735499]
[1763152215759,2.79883034,95001.0,95000.0,110.12735499]
[1763152215938,2.79683034,95001.0,95000.0,110.12735499]
[1763152216144,2.79883034,95001.0,95000.0,110.12735499]
[1763152216373,2.80183034,95001.0,95000.0,110.12735499]
[1763152216595,2.83114058,95001.0,95000.0,110.12735499]
[1763152217040,2.8737746,95001.0,95000.0,108.93700369]
[1763152217222,2.9003309,95001.0,95000.0,108.93700369]
[1763152217598,2.8903309,95001.0,95000.0,108.93700369]
[1763152217798,2.8737746,95001.0,95000.0,108.93700369]
[1763152218207,2.7699523,95001.0,95000.0,108.93700369]
[1763152218410,2.8542723,95001.0,95000.0,108.93700369]
[1763152218576,2.8738286,95001.0,95000.0,108.93700369]
[1763152219396,2.7895086,95001.0,95000.0,108.93700369]
[1763152219602,2.89331772,95001.0,95000.0,108.93700369]
[1763152219798,2.8738286,95001.0,95000.0,108.93700369]
[1763152220637,2.89331926,95001.0,95000.0,108.93700369]
[1763152226303,2.67671519,95001.0,95000.0,108.93700369]
[1763152226710,2.70877543,95001.0,95000.0,108.93700369]
[1763152226919,2.75219417,95001.0,95000.0,108.93700369]
[1763152227113,2.62445543,95001.0,95000.0,108.93700369]
[1763152227476,0.59239519,95001.0,95000.0,108.93700369]
[1763152227694,0.77154355,95001.0,95000.0,108.93700369]
[1763152227848,0.7992586,95001.0,95000.0,108.93700369]
[1763152228050,0.76654355,95001.0,95000.0,108.93700369]
[1763152228256,0.76854355,95001.0,95000.0,108.93700369]
[1763152228464,0.77054355,95001.0,95000.0,108.93700369]
[1763152228623,0.73848331,95001.0,95000.0,108.93700369]
[1763152231248,0.77054355,95001.0,95000.0,108.93700369]
[1763152231733,2.73848331,95001.0,95000.0,108.93700369]
[1763152231940,2.77054355,95001.0,95000.0,108.93700369]
[1763152232191,2.73848331,95001.0,95000.0,108.93700369]
[1763152232390,2.77054355,95001.0,95000.0,108.93700369]
[1763152234329,0.77054355,95001.0,95000.0,108.93700369]
[1763152234532,0.73848331,95001.0,95000.0,108.93700369]
[1763152234735,0.77054355,95001.0,95000.0,108.93700369]
[1763152235138,0.73848331,95001.0,95000.0,108.93700369]
[1763152236166,0.63453393,95001.0,95000.0,108.93700369]
[1763152236420,0.61312096,95001.0,95000.0,108.93700369]
[1763152236814,0.63340415,95001.0,95000.0,108.93700369]
[1763152237180,0.62940415,95001.0,95000.0,108.93700369]
[1763152237382,0.63140415,95001.0,95000.0,108.93700369]
[1763152237577,0.63340415,95001.0,95000.0,108.93700369]
[1763152237784,0.73707353,95001.0,95000.0,108.93700369]
[1763152238715,0.63340415,95001.0,95000.0,108.93700369]
[1763152245412,0.24670222,95001.0,95000.0,108.93700369]
[1763152245604,0.21452409,95001.0,95000.0,108.93700369]
[1763152246173,0.004,95001.0,95000.0,108.93700369]
[1763152246397,0.004,95001.0,95000.0,109.02919369]
[1763152246596,0.002,95001.0,95000.0,108.93700369]
[1763152246851,0.21252409,95001.0,95000.0,108.93700369]
[1763152247414,0.21858409,95001.0,95000.0,108.93700369]
[1763152247613,0.21658409,95001.0,95000.0,108.93700369]
[1763152248788,0.62439766,95001.0,95000.0,108.93700369]
[1763152248988,0.61538031,95001.0,95000.0,108.93700369]
[1763152249203,0.54178674,95001.0,95000.0,108.93700369]
[1763152250146,0.58720548,95001.0,95000.0,108.93700369]
[1763152250330,0.58620548,95001.0,95000.0,108.93700369]
[1763152250551,0.60648867,95001.0,95000.0,108.93700369]
[1763152250769,0.60848867,95001.0,95000.0,108.93700369]
[1763152251585,0.60748867,95001.0,95000.0,108.93700369]
[1763152251791,0.60548867,95001.0,95000.0,108.93700369]
[1763152251968,0.58720548,95001.0,95000.0,108.93700369]
[1763152252716,0.58920548,95001.0,95000.0,108.93700369]
[1763152253085,0.49798548,95001.0,95000.0,108.93700369]
[1763152253265,0.51964113,95001.0,95000.0,108.93700369]
[1763152254506,0.47622239,95001.0,95000.0,108.93700369]
[1763152255586,0.47222239,95001.0,95000.0,108.93700369]
[1763152255795,0.47322239,95001.0,95000.0,108.93700369]
[1763152255946,0.47422239,95001.0,95000.0,108.93700369]
[1763152256145,0.50584049,95001.0,95000.0,108.93700369]
[1763152256344,0.47422239,95001.0,95000.0,108.93700369]
[1763152256823,0.46378674,95001.0,95000.0,108.93700369]
[1763152257576,0.46278674,95001.0,95000.0,108.93700369]
[1763152257985,0.001,95001.0,95000.0,108.93700369]
[1763152258464,0.002,95001.0,95000.0,108.93700369]
[1763152258937,0.001,95001.0,95000.0,108.93700369]
[1763152259139,0.21052338,95002.0,95000.0,108.93700369]
[1763152259694,0.323,95006.0,95000.0,108.93700369]
[1763152259893,0.53351367,95006.0,95000.0,108.93700369]
[1763152260091,0.21051646,95005.0,95000.0,108.93700369]
[1763152260289,0.21052271,95002.0,95000.0,108.93700369]
[1763152260536,0.323,95001.0,95000.0,108.93700369]
[1763152262034,0.324,95001.0,95000.0,108.93700369]
[1763152262434,0.325,95001.0,95000.0,108.93700369]
[1763152263420,0.42866938,95001.0,95000.0,108.93700369]
[1763152264161,0.325,95001.0,95000.0,108.93700369]
[1763152264380,0.324,95001.0,95000.0,108.93700369]
[1763152264720,0.323,95001.0,95000.0,108.93700369]
[1763152265117,0.325,95001.0,95000.0,108.93700369]
[1763152265560,0.324,95001.0,95000.0,108.93700369]
[1763152266347,0.53452409,95001.0,95000.0,108.93700369]
[1763152266794,0.53552409,95001.0,95000.0,108.93700369]
[1763152267171,0.63919347,95001.0,95000.0,108.93700369]
[1763152267383,0.63719347,95001.0,95000.0,108.93700369]
[1763152267592,0.53452409,95001.0,95000.0,108.93700369]
[1763152267791,0.53552409,95001.0,95000.0,108.93700369]
[1763152267990,0.53452409,95001.0,95000.0,108.93700369]
[1763152268196,0.53352409,95001.0,95000.0,108.93700369]
[1763152268380,0.53452409,95001.0,95000.0,108.93700369]
[1763152269056,0.53552409,95001.0,95000.0,108.93700369]
[1763152271441,0.55914062,95001.0,95000.0,108.93700369]
[1763152273397,0.53552409,95001.0,95000.0,108.93700369]
[1763152274386,0.53452409,95001.0,95000.0,108.93700369]
[1763152274589,0.53552409,95001.0,95000.0,108.93700369]
[1763152274792,0.53452409,95001.0,95000.0,108.93700369]
[1763152275224,0.53552409,95001.0,95000.0,108.93700369]
[1763152277222,0.002,95001.0,95000.0,108.93700369]
[1763152277999,0.001,95001.0,95000.0,108.93700369]
[1763152278351,0.53352341,95002.0,95000.0,108.93700369]
[1763152278549,0.21051011,95008.0,95000.0,108.93700369]
[1763152278755,0.21049574,95014.0,95002.0,0.09926803]
[1763152279023,0.22726375,95015.0,95002.0,0.09926803]
[1763152279230,0.01677,95015.0,95002.0,0.09926803]
[1763152279365,0.21049803,95013.0,95002.0,0.09926803]
[1763152279561,0.02710354,95015.0,95002.0,0.09926803]
[1763152280008,0.02710354,95015.0,95001.0,0.09926803]
[1763152280181,0.3790908,95011.0,95001.0,0.09926803]
[1763152280381,0.02710354,95015.0,95001.0,0.09926803]
[1763152280588,0.02710354,95015.0,95001.0,0.18267803]
[1763152280982,0.02710354,95015.0,95002.0,0.08341]
[1763152281183,0.38961379,95030.0,95014.0,0.09925]
[1763152281388,0.323,95022.0,95018.0,0.05684]
[1763152281589,0.21048261,95020.0,95016.0,0.09926803]
[1763152281994,0.323,95022.0,94990.0,0.025]
[1763152282207,0.323,95019.0,95001.0,0.09926803]
[1763152282404,0.323,95017.0,95004.0,0.04241]
[1763152282612,0.53348553,95019.0,95004.0,0.04241]
[1763152282812,0.323,95015.0,95005.0,0.08341]
[1763152283013,0.323,95019.0,95005.0,0.08341]
[1763152283243,0.21051346,95006.0,95004.0,0.04241]
[1763152283475,0.323,95017.0,94998.0,0.001]
[1763152283476,0.21052188,95002.0,94998.0,0.001]
[1763152283678,0.42226803,95001.0,94998.0,0.001]
[1763152283959,0.42226803,95001.0,95000.0,108.93433933]
[1763152283960,0.47966972,95001.0,95000.0,108.93433933]
[1763152284116,0.45388653,95001.0,95000.0,108.93433933]
[1763152285295,0.3546185,95001.0,95000.0,108.93433933]
[1763152285500,0.323,95001.0,95000.0,108.93433933]
[1763152286351,0.325,95001.0,95000.0,108.93433933]
[1763152286561,0.324,95001.0,95000.0,108.93433933]
[1763152286777,0.323,95001.0,95000.0,108.93433933]
[1763152287003,0.324,95001.0,95000.0,108.93433933]
[1763152287199,0.325,95001.0,95000.0,108.93433933]
[1763152288826,0.002,95001.0,95000.0,108.79117933]
[1763152289039,0.001,95001.0,95000.0,108.79117933]
[1763152289597,0.002,95001.0,95000.0,108.79117933]
[1763152289801,0.001,95001.0,95000.0,108.79117933]
[1763152290004,0.001,95001.0,95000.0,108.73433933]
[1763152290201,0.63475799,95020.0,95000.0,108.73433933]
[1763152290409,0.21051583,95005.0,95001.0,0.09926803]
[1763152290605,0.21050322,95011.0,95001.0,0.09926803]
[1763152290809,0.323,95019.0,95002.0,0.08404]
[1763152291022,0.323,95017.0,95002.0,0.08404]
[1763152291222,0.21049885,95013.0,95002.0,0.08404]
[1763152291447,0.21050521,95010.0,95002.0,0.08404]
[1763152291983,0.21049328,95015.0,95011.0,0.05378]
[1763152292234,0.21049894,95013.0,95011.0,0.05378]
[1763152292386,0.63475799,95021.0,95011.0,0.05378]
[1763152292387,0.323,95017.0,95011.0,0.05378]
[1763152292587,0.23760447,95027.0,95012.0,0.08404]
[1763152292812,0.323,95026.0,95012.0,0.08404]
[1763152293058,0.21049626,95014.0,95012.0,0.08404]